bitfinex-derivatives/quotes_BTCF0:USTF0_20241125
["timestamp","ask_amount","ask_price","bid_price","bid_amount"]
[1732569053531,0.01710045,95000.0,94999.0,0.17808]
[1732569055436,0.0261456,95000.0,94999.0,0.12148801]
[1732569056152,0.01710045,95000.0,94999.0,0.12148801]
[1732569056326,0.0261465,95000.0,94999.0,0.12148801]
[1732569056729,0.0261465,95000.0,94999.0,0.17808]
[1732569056928,0.01710045,95000.0,94999.0,0.17808]
[1732569057134,0.02605866,95000.0,94999.0,0.17808]
[1732569057336,0.01710045,95000.0,94999.0,0.17808]
[1732569059039,0.052619,94999.0,94995.0,0.3608]
[1732569059239,0.052619,94999.0,94996.0,0.17808]
[1732569059940,0.05262,94998.0,94996.0,0.17808]
[1732569060135,0.05262,94998.0,94997.0,0.17276]
[1732569060330,0.17350898,95000.0,94990.0,0.01045822]
[1732569060532,0.15640853,94999.0,94991.0,0.17276]
[1732569060834,0.052621,94997.0,94994.0,0.052622]
[1732569061845,0.052621,94997.0,94991.0,0.17276]
[1732569061846,0.15640853,94998.0,94996.0,0.052621]
[1732569062036,0.01710045,95000.0,94998.0,0.05262]
[1732569062731,0.11107242,95000.0,94998.0,0.05262]
[1732569062934,0.01710045,95000.0,94998.0,0.05262]
[1732569063140,0.0939632,94999.0,94998.0,0.05262]
[1732569063340,0.01710045,95000.0,94998.0,0.05262]
[1732569063540,0.01710045,95000.0,94998.0,0.06285276]
[1732569063748,0.01710045,95000.0,94999.0,0.0004]
[1732569064141,0.01710045,95000.0,94999.0,0.17316]
[1732569064642,0.07030045,95000.0,94999.0,0.17316]
[1732569064841,0.12147865,95000.0,94999.0,0.17316]
[1732569065344,0.07030045,95000.0,94999.0,0.17316]
[1732569065544,0.17376224,95000.0,94999.0,0.17316]
[1732569065745,0.01710045,95000.0,94999.0,0.22626]
[1732569069444,0.11114157,95000.0,94999.0,0.22626]
[1732569069650,0.11114157,95000.0,94999.0,0.54206]
[1732569069953,0.12539307,95007.0,95005.0,0.052616]
[1732569070140,0.12539307,95009.0,95007.0,0.052615]
[1732569070450,0.12549718,95011.0,95009.0,0.052614]
[1732569070747,0.12549718,95011.0,95010.0,0.17312]
[1732569070950,0.12549718,95014.0,95013.0,0.052612]
[1732569071143,0.15666179,95022.0,95019.0,0.052608]
[1732569071458,0.15666179,95022.0,95019.0,0.053008]
[1732569071749,0.15674669,95020.0,95019.0,0.053008]
[1732569071949,8.49e-05,95020.0,95019.0,0.053008]
[1732569072249,0.15698259,95020.0,95019.0,0.053008]
[1732569072450,8.49e-05,95020.0,95019.0,0.053008]
[1732569074051,0.05125169,95020.0,95019.0,0.053008]
[1732569074442,0.10385969,95020.0,95019.0,0.0004]
[1732569074640,0.10385969,95020.0,95019.0,0.17312]
[1732569075551,0.10385969,95020.0,95013.0,0.48652]
[1732569075747,0.10385969,95020.0,94996.0,0.0026]
[1732569075748,0.052612,95012.0,95011.0,0.17272]
[1732569076053,0.05116679,95012.0,95009.0,0.17272]
[1732569076353,0.05116679,95012.0,94996.0,0.4874]
[1732569076354,0.052618,95001.0,95000.0,0.17272]
[1732569076649,0.052618,95001.0,94996.0,0.00088]
[1732569076650,0.052621,94997.0,94996.0,0.00088]
[1732569076849,0.10380154,94997.0,94996.0,0.00088]
[1732569077053,0.10460154,94997.0,94996.0,0.00088]
[1732569077442,0.10460154,94997.0,94996.0,0.226221]
[1732569077653,0.10460154,94997.0,94996.0,0.225341]
[1732569077850,0.10460154,94997.0,94996.0,0.17272]
[1732569079856,0.052626,94988.0,94987.0,0.3608]
[1732569080047,0.10380654,94988.0,94987.0,0.52684]
[1732569080350,0.10460654,94988.0,94987.0,0.52684]
[1732569081251,0.052633,94976.0,94975.0,0.052633]
[1732569081453,0.052633,94976.0,94975.0,0.218673]
[1732569081652,0.052633,94976.0,94975.0,0.052633]
[1732569081855,0.0008,94976.0,94975.0,0.218673]
[1732569083052,0.12626119,94976.0,94975.0,0.218673]
[1732569083246,0.0008,94976.0,94975.0,0.218673]
[1732569083953,0.12626119,94976.0,94975.0,0.218673]
[1732569084657,0.0008,94976.0,94975.0,0.052633]
[1732569084845,0.0008,94976.0,94975.0,0.218673]
[1732569085243,0.0008,94976.0,94975.0,0.052633]
[1732569085559,0.12626119,94976.0,94975.0,0.218713]
[1732569085855,0.0008,94976.0,94975.0,0.218713]
[1732569088851,0.0008,94976.0,94975.0,0.052633]
[1732569089048,0.0008,94976.0,94975.0,0.218713]
[1732569089250,0.0008,94976.0,94975.0,0.052633]
[1732569089454,0.0008,94976.0,94975.0,0.218713]
[1732569089852,0.12613229,94976.0,94975.0,0.218713]
[1732569090048,0.0008,94976.0,94975.0,0.218713]
[1732569090658,0.12613229,94976.0,94975.0,0.218713]
[1732569090849,0.0008,94976.0,94975.0,0.218713]
[1732569091050,0.12613229,94976.0,94975.0,0.218713]
[1732569091262,0.0008,94976.0,94975.0,0.218713]
[1732569092854,0.0008,94976.0,94975.0,0.052633]
[1732569093061,0.0008,94976.0,94975.0,0.218713]
[1732569095259,0.053432,94976.0,94975.0,0.218713]
[1732569095458,0.053432,94976.0,94975.0,0.052633]
[1732569095652,0.053432,94976.0,94975.0,0.16608]
[1732569095653,0.0008,94976.0,94975.0,0.16608]
[1732569095851,0.1261068,94976.0,94975.0,0.16608]
[1732569096158,0.1261068,94976.0,94971.0,0.48656]
[1732569096159,0.052634,94972.0,94971.0,0.48656]
[1732569096362,0.052634,94972.0,94971.0,0.65264]
[1732569096559,0.053434,94972.0,94971.0,0.65264]
[1732569096859,0.053434,94972.0,94971.0,0.48656]
[1732569097063,0.053434,94972.0,94971.0,0.65264]
[1732569097257,0.0008,94972.0,94971.0,0.48656]
[1732569097653,0.0008,94972.0,94971.0,0.65264]
[1732569098169,0.0008,94972.0,94971.0,0.70754]
[1732569104267,0.15774468,94972.0,94971.0,0.70754]
[1732569104460,0.15774468,94972.0,94971.0,0.705275]
[1732569104461,0.0008,94972.0,94971.0,0.705275]
[1732569105075,0.0008,94972.0,94971.0,0.539195]
[1732569105263,0.0008,94972.0,94971.0,0.705275]
[1732569105664,0.05198809,94972.0,94971.0,0.705275]
[1732569106260,0.18907523,94972.0,94971.0,0.705275]
[1732569106462,0.05198809,94972.0,94971.0,0.705275]
[1732569106667,0.24026332,94972.0,94971.0,0.705275]
[1732569106870,0.05198809,94972.0,94971.0,0.705275]
[1732569108477,0.1894091,94972.0,94971.0,0.705275]
[1732569108884,0.0008,94972.0,94971.0,0.705275]
[1732569115989,0.15731781,94973.0,94972.0,0.052634]
[1732569116189,0.21977633,94995.0,94986.0,0.052626]
[1732569116386,0.21977633,94995.0,94994.0,0.413422]
[1732569118794,0.21977633,94995.0,94994.0,0.42355986]
[1732569119497,0.21977633,94995.0,94994.0,0.58355986]
[1732569119888,0.3608,95008.0,94996.0,0.052621]
[1732569119889,0.12565631,94999.0,94996.0,0.052621]
[1732569120089,0.12565631,94998.0,94996.0,0.539221]
[1732569120296,0.12565631,94998.0,94996.0,0.539621]
[1732569120798,0.12565631,94999.0,94996.0,0.539621]
[1732569121397,0.12565631,95000.0,94996.0,0.539621]
[1732569121898,0.12565631,95001.0,94996.0,0.539621]
[1732569122098,0.12565631,95002.0,94996.0,0.539621]
[1732569122299,0.12565631,95003.0,94996.0,0.539621]
[1732569122491,0.12565631,95006.0,94996.0,0.539621]
[1732569122692,0.12565631,95005.0,94996.0,0.539621]
[1732569122894,0.12565631,95006.0,94996.0,0.539621]
[1732569123193,0.12565631,95007.0,94996.0,0.539621]
[1732569123695,0.12565631,95005.0,94996.0,0.539621]
[1732569123888,0.12565631,95006.0,94996.0,0.539621]
[1732569124290,0.12565631,95007.0,94996.0,0.539621]
[1732569124597,0.12565631,95006.0,94996.0,0.539621]
[1732569124792,0.12565631,95007.0,94996.0,0.539621]
[1732569125401,0.12565631,95006.0,94996.0,0.539621]
[1732569130295,0.12565631,95006.0,95005.0,0.052616]
[1732569130499,0.12565631,95006.0,95005.0,0.573376]
[1732569130897,0.3608,95017.0,95016.0,0.05261]
[1732569131105,0.3608,95017.0,95016.0,0.21257]
[1732569131301,0.3608,95017.0,95016.0,0.21337001]
[1732569131688,0.41196797,95017.0,95016.0,0.21337001]
[1732569135117,0.05116797,95017.0,95016.0,0.21337001]
[1732569136911,0.052606,95023.0,95016.0,0.16076001]
[1732569137110,0.18818453,95021.0,95019.0,0.052608]
[1732569137322,0.1202907,95027.0,95019.0,0.05340801]
[1732569137323,0.05125017,95020.0,95019.0,0.05340801]
[1732569137516,8.49e-05,95020.0,95019.0,0.05352121]
[1732569138509,0.0534,95040.0,95019.0,0.36924121]
[1732569138510,0.12548447,95025.0,95019.0,0.36924121]
[1732569138704,0.05115881,95033.0,95019.0,0.36924121]
[1732569138705,0.12548447,95031.0,95029.0,0.052603]
[1732569138907,0.21977633,95055.0,95024.0,0.3608]
[1732569138908,0.12548729,95039.0,95037.0,0.052598]
[1732569139231,0.053,95056.0,95030.0,0.83644]
[1732569139232,0.053,95062.0,95039.0,0.052597]
[1732569139508,0.0553,95067.0,95066.0,0.052582]
[1732569139709,0.0553,95067.0,95066.0,0.212502]
[1732569139910,0.10051685,95068.0,95066.0,0.21338353]
[1732569140418,0.10051685,95068.0,95067.0,0.00080001]
[1732569142325,0.00011437,95082.0,95067.0,0.00080001]
[1732569142326,0.00011437,95082.0,95081.0,0.052574]
[1732569142507,0.00011437,95082.0,95081.0,0.573254]
[1732569142806,0.00011437,95082.0,95081.0,0.57405401]
[1732569143006,0.00011437,95082.0,95081.0,0.93485401]
[1732569148210,0.00011437,95082.0,95081.0,0.94534212]
[1732569150004,0.00011437,95082.0,95081.0,0.73288812]
[1732569150312,0.00011437,95082.0,95081.0,0.88224001]
[1732569150313,0.31563437,95082.0,95081.0,0.88224001]
[1732569150504,0.31563437,95082.0,95081.0,0.00080001]
[1732569150706,0.31563437,95082.0,95081.0,0.16064001]
[1732569150918,0.00011437,95082.0,95081.0,0.16064001]
[1732569151307,0.00011437,95082.0,95081.0,0.00080001]
[1732569151512,0.00011437,95082.0,95081.0,0.16064001]
[1732569155017,0.052579,95072.0,95071.0,0.48708]
[1732569155218,0.31563437,95082.0,95046.0,0.0528]
[1732569155219,0.3608,95075.0,95057.0,0.3608]
[1732569155421,0.413382,95067.0,95057.0,0.3608]
[1732569155729,0.413382,95067.0,95066.0,0.15992152]
[1732569158415,0.42356517,95067.0,95066.0,0.15992152]
[1732569158817,0.42356517,95067.0,95057.0,0.3608]
[1732569158818,0.052587,95058.0,95057.0,0.3608]
[1732569159023,0.052587,95058.0,95057.0,0.52064]
[1732569159233,0.368587,95058.0,95057.0,0.413387]
[1732569159520,0.368587,95058.0,95057.0,0.573227]
[1732569159913,0.368587,95058.0,95057.0,0.57336026]
[1732569161321,0.052987,95058.0,95057.0,0.57336026]
[1732569163721,0.052987,95058.0,95057.0,0.41352026]
[1732569164026,0.052987,95058.0,95057.0,0.57336026]
[1732569164511,0.052987,95058.0,95057.0,0.52077326]
[1732569164717,0.052987,95058.0,95057.0,0.15984]
[1732569164918,0.316,95058.0,95039.0,0.48624]
[1732569165124,0.316,95058.0,95041.0,0.052596]
[1732569165125,0.052597,95042.0,95041.0,0.052596]
[1732569165417,0.052597,95042.0,95040.0,0.15984]
[1732569165418,0.052596,95041.0,95040.0,0.15984]
[1732569165625,0.110296,95041.0,95040.0,0.052597]
[1732569165920,0.110296,95041.0,95040.0,0.21253644]
[1732569166139,0.110296,95041.0,95040.0,0.15993944]
[1732569166514,0.110296,95041.0,95040.0,0.15997944]
[1732569167324,0.110296,95041.0,95040.0,9.944e-05]
[1732569168518,0.110296,95041.0,95040.0,0.05269644]
[1732569169318,0.110296,95041.0,95040.0,9.944e-05]
[1732569169718,0.110296,95041.0,95040.0,0.15997944]
[1732569170117,0.110296,95041.0,95040.0,9.944e-05]
[1732569170814,0.73414,95041.0,95031.0,0.48624]
[1732569171024,0.73414,95041.0,95037.0,0.15988]
[1732569171025,0.052598,95038.0,95037.0,0.15988]
[1732569171526,0.368278,95038.0,95037.0,0.15988]
[1732569172324,0.368278,95038.0,95034.0,8.831e-05]
[1732569172325,0.31568,95038.0,95034.0,8.831e-05]
[1732569172518,0.0526,95035.0,95034.0,8.831e-05]
[1732569172919,0.36828,95035.0,95034.0,8.831e-05]
[1732569173727,0.0526,95035.0,95034.0,0.05268831]
[1732569173917,0.052597,95040.0,95039.0,0.052597]
[1732569175825,0.052597,95040.0,95034.0,8.831e-05]
[1732569175826,0.0526,95038.0,95037.0,0.052598]
[1732569176024,0.0526,95038.0,95037.0,0.212478]
[1732569176217,0.053,95038.0,95037.0,0.212479]
[1732569176415,0.0004,95038.0,95037.0,0.212479]
[1732569178727,0.01082519,95038.0,95037.0,0.212479]
[1732569178928,0.052998,95038.0,95037.0,0.212479]
[1732569179227,0.052998,95038.0,95025.0,0.11]
[1732569179228,0.052608,95022.0,95021.0,0.052607]
[1732569179626,0.053008,95022.0,95021.0,0.052607]
[1732569180228,0.053008,95022.0,95021.0,0.21261579]
[1732569180535,0.053008,95022.0,95021.0,0.00012879]
[1732569180834,0.053008,95022.0,95021.0,0.05273679]
[1732569181722,0.0004,95022.0,95021.0,0.05273679]
[1732569183125,0.0004,95022.0,95021.0,0.00012879]
[1732569183126,0.053007,95022.0,95021.0,0.00012879]
[1732569184134,0.0530875,95022.0,95021.0,0.00012879]
[1732569186329,0.3688075,95022.0,95021.0,0.00012879]
[1732569191132,0.7296075,95022.0,95021.0,0.00012879]
[1732569191430,0.88550221,95022.0,95021.0,0.00012879]
[1732569191634,0.052618,95002.0,95001.0,0.0576]
[1732569191822,0.052618,95002.0,95000.0,0.4864]
[1732569191823,0.052619,95001.0,95000.0,0.64632]
[1732569192026,0.052619,95001.0,94986.0,0.06657008]
[1732569192233,0.05262,94998.0,94987.0,0.15992]
[1732569192433,0.052629,94983.0,94982.0,0.00064]
[1732569192629,0.052629,94983.0,94982.0,0.00076412]
[1732569192826,0.053029,94983.0,94982.0,0.00012412]
[1732569193427,0.46296893,94983.0,94982.0,0.00012412]
[1732569193630,0.37923789,94983.0,94982.0,0.00012412]
[1732569194025,0.47327795,94983.0,94982.0,0.00012412]
[1732569194225,0.37923789,94983.0,94982.0,0.00012412]
[1732569194424,0.01076889,94983.0,94982.0,0.00012412]
[1732569194645,0.01076889,94983.0,94982.0,0.21271312]
[1732569194941,0.06339789,94983.0,94982.0,0.21271312]
[1732569195739,0.06339789,94983.0,94982.0,0.16008412]
[1732569196442,0.15733282,94983.0,94982.0,0.16008412]
[1732569197040,0.06339789,94983.0,94982.0,0.16008412]
[1732569197247,0.15729628,94983.0,94982.0,0.16008412]
[1732569197445,0.06339789,94983.0,94982.0,0.16008412]
[1732569197749,0.06339789,94983.0,94982.0,0.00012412]
[1732569197934,0.15729628,94983.0,94982.0,0.00012412]
[1732569198140,0.06339789,94983.0,94982.0,0.00012412]
[1732569198441,0.15729634,94983.0,94982.0,0.00012412]
[1732569198841,0.06339789,94983.0,94982.0,0.00012412]
[1732569200840,0.42419789,94983.0,94982.0,0.00012412]
[1732569201234,0.42419789,94983.0,94941.0,0.18900902]
[1732569201235,0.68740889,94983.0,94941.0,0.18900902]
[1732569201432,0.052639,94964.0,94963.0,0.15988]
[1732569201636,0.413439,94964.0,94963.0,0.15988]
[1732569201838,0.053039,94964.0,94963.0,0.15988]
[1732569202051,0.05264,94963.0,94961.0,0.05264]
[1732569202252,0.05264,94963.0,94962.0,0.00011691]
[1732569203052,0.05264,94963.0,94962.0,0.05275691]
[1732569204051,0.05264,94963.0,94962.0,0.00011691]
[1732569204254,0.06279115,94963.0,94962.0,0.00011691]
[1732569204457,0.06279115,94963.0,94962.0,0.15999691]
[1732569206062,0.42372202,94963.0,94962.0,0.00011691]
[1732569207057,0.052648,94947.0,94946.0,0.0552]
[1732569207253,0.413448,94947.0,94946.0,0.0552]
[1732569208063,0.413448,94947.0,94946.0,0.05527718]
[1732569208764,0.413448,94947.0,94916.0,0.0026]
[1732569208765,0.052665,94917.0,94916.0,0.0026]
[1732569208954,0.052665,94917.0,94916.0,0.21362]
[1732569209157,0.053065,94917.0,94916.0,0.21362]
[1732569209751,0.053065,94917.0,94916.0,0.21375022]
[1732569209960,0.053065,94917.0,94916.0,0.05383022]
[1732569210156,0.053065,94917.0,94916.0,0.21375022]
[1732569210353,0.053065,94917.0,94916.0,0.05383022]
[1732569210960,0.0637,94917.0,94916.0,0.00013022]
[1732569211663,0.37978,94917.0,94916.0,0.00013022]
[1732569212260,0.0637,94917.0,94916.0,0.00013022]
[1732569213561,0.37978,94917.0,94916.0,2.2e-07]
[1732569215663,0.052674,94901.0,94900.0,0.1]
[1732569215867,0.413474,94901.0,94900.0,0.1]
[1732569216065,0.774674,94901.0,94900.0,0.1]
[1732569216762,0.413874,94901.0,94900.0,0.10011685]
[1732569218776,0.42422475,94901.0,94900.0,0.10011685]
[1732569220456,0.5208,94915.0,94900.0,0.10011685]
[1732569220457,0.052674,94902.0,94900.0,0.10011685]
[1732569220662,0.052674,94902.0,94901.0,0.16]
[1732569220975,0.052674,94902.0,94901.0,0.1604]
[1732569221473,0.052674,94902.0,94901.0,0.0004]
[1732569222471,0.06320296,94902.0,94901.0,0.0004]
[1732569223372,0.06320296,94902.0,94901.0,0.268373]
[1732569223373,0.052674,94902.0,94901.0,0.268373]
[1732569224660,0.052674,94902.0,94901.0,0.1604]
[1732569227174,0.052674,94902.0,94901.0,0.16044]
[1732569228571,0.413474,94902.0,94901.0,0.16044]
[1732569229375,0.413474,94902.0,94901.0,0.0004]
[1732569231411,0.41357876,94902.0,94901.0,0.0004]
[1732569234297,0.50731724,94902.0,94901.0,0.0004]
[1732569235005,0.41357876,94902.0,94901.0,0.0004]
[1732569235316,0.50758833,94902.0,94901.0,0.0004]
[1732569235497,0.41357876,94902.0,94901.0,0.0574]
[1732569236010,0.41357876,94902.0,94901.0,0.110074]
[1732569236216,0.05277776,94902.0,94901.0,0.0004]
[1732569236407,0.05277776,94902.0,94889.0,0.18900902]
[1732569236408,0.36090476,94902.0,94889.0,0.18900902]
[1732569236594,0.36090476,94902.0,94887.0,0.16492]
[1732569236595,0.052681,94889.0,94888.0,0.052681]
[1732569237115,0.0004,94890.0,94888.0,0.052681]
[1732569237116,0.0004,94890.0,94888.0,0.16492]
[1732569237301,0.0004,94890.0,94889.0,0.052681]
[1732569237512,0.0004,94890.0,94889.0,0.21811747]
[1732569237705,0.05308,94890.0,94889.0,0.21811747]
[1732569238311,0.14708957,94890.0,94889.0,0.21811747]
[1732569238512,0.06324697,94890.0,94889.0,0.21811747]
[1732569240418,0.06324697,94890.0,94889.0,0.00051647]
[1732569240907,0.22008018,94890.0,94889.0,0.00051647]
[1732569241120,0.22046943,94890.0,94889.0,0.00051647]
[1732569241305,0.11448803,94890.0,94889.0,0.00051647]
[1732569241507,0.06324697,94890.0,94889.0,0.00051647]
[1732569241709,0.22046398,94890.0,94889.0,0.00051647]
[1732569241915,0.06324697,94890.0,94889.0,0.00051647]
[1732569242320,0.06324697,94890.0,94874.0,0.61353202]
[1732569242321,0.052687,94877.0,94876.0,0.18900902]
[1732569242525,0.052683,94885.0,94873.0,0.16492]
[1732569242526,0.3608,94878.0,94873.0,0.16492]
[1732569242809,0.052691,94870.0,94869.0,0.16492]
[1732569243120,0.052691,94870.0,94867.0,0.16492]
[1732569243121,0.052692,94868.0,94867.0,0.16492]
[1732569243409,0.052697,94860.0,94859.0,0.105997]
[1732569243614,0.052697,94860.0,94859.0,0.10612971]
[1732569243806,0.05309701,94860.0,94859.0,0.10612971]
[1732569244305,0.05309701,94860.0,94859.0,0.21835271]
[1732569245310,0.05309701,94860.0,94859.0,0.27104971]
[1732569245609,0.06373034,94860.0,94859.0,0.27104971]
[1732569245805,0.06373034,94860.0,94859.0,0.21835271]
[1732569246209,0.05309701,94860.0,94859.0,0.21835271]
[1732569246410,0.05309701,94860.0,94859.0,0.05343271]
[1732569246708,0.05309701,94860.0,94859.0,0.21835271]
[1732569247910,0.00040001,94860.0,94859.0,0.27104971]
[1732569248108,0.15706593,94874.0,94859.0,0.27104971]
[1732569248109,0.12565201,94869.0,94868.0,0.052692]
[1732569248304,0.12565201,94876.0,94875.0,0.052688]
[1732569248506,0.15706593,94885.0,94875.0,0.16492]
[1732569248713,0.15706593,94886.0,94882.0,0.3608]
[1732569248914,0.0004,94890.0,94882.0,0.3608]
[1732569248915,0.0004,94890.0,94889.0,0.052681]
[1732569249205,0.0004,94890.0,94889.0,0.218001]
[1732569250312,0.0004,94890.0,94889.0,0.534161]
[1732569250599,0.00010476,94902.0,94901.0,0.052674]
[1732569250823,0.00010476,94902.0,94901.0,0.368794]
[1732569251003,0.00010476,94902.0,94901.0,0.369194]
[1732569251392,0.02108936,94921.0,94920.0,0.052663]
[1732569251587,0.02108936,94921.0,94920.0,0.217583]
[1732569251796,0.02108936,94921.0,94920.0,0.217983]
[1732569252299,0.052663,94922.0,94920.0,0.217983]
[1732569252589,0.052663,94922.0,94920.0,0.16544254]
[1732569252797,0.052663,94922.0,94921.0,0.0004]
[1732569255394,0.43050884,94926.0,94924.0,0.052661]
[1732569255594,9.878e-05,94927.0,94926.0,0.05266]
[1732569255998,9.878e-05,94927.0,94926.0,0.05306]
[1732569256693,9.878e-05,94927.0,94926.0,0.21794]
[1732569257396,9.878e-05,94927.0,94926.0,0.57874]
[1732569258889,9.878e-05,94927.0,94926.0,0.89478]
[1732569259892,9.878e-05,94927.0,94926.0,0.57874]
[1732569260398,9.878e-05,94927.0,94926.0,0.21506]
[1732569261897,9.878e-05,94927.0,94926.0,0.05306]
[1732569262099,9.878e-05,94927.0,94926.0,0.21506]
[1732569263695,9.878e-05,94927.0,94926.0,0.53106]
[1732569263892,9.878e-05,94927.0,94926.0,0.89186]
[1732569265497,0.1091518,94950.0,94926.0,0.89186]
[1732569265498,0.0026,94950.0,94926.0,0.89186]
[1732569265808,0.052647,94949.0,94935.0,0.3608]
[1732569266000,0.052648,94948.0,94935.0,0.3608]
[1732569266826,0.1065518,94960.0,94935.0,0.3608]
[1732569266827,0.00010099,94954.0,94935.0,0.3608]
[1732569266993,0.00010099,94954.0,94945.0,0.05265]
[1732569266994,0.052649,94946.0,94945.0,0.05265]
[1732569267192,0.052649,94946.0,94945.0,0.21461]
[1732569268399,0.052649,94946.0,94945.0,0.16196]
[1732569268600,0.37347454,94952.0,94945.0,0.16196]
[1732569268807,0.052649,94946.0,94945.0,0.16196]
[1732569269001,0.052654,94937.0,94936.0,0.44272]
[1732569269202,0.052647,94950.0,94932.0,0.052657]
[1732569269203,0.3608,94941.0,94932.0,0.052657]
[1732569269409,0.3608,94941.0,94926.0,0.3612]
[1732569269410,0.052656,94934.0,94933.0,0.214616]
[1732569270402,0.0004,94937.0,94936.0,0.052655]
[1732569270706,0.0004,94937.0,94936.0,0.053055]
[1732569272304,0.0004,94937.0,94936.0,0.215015]
[1732569274306,0.053054,94937.0,94936.0,0.215015]
[1732569275700,0.0004,94937.0,94936.0,0.215015]
[1732569276599,0.053054,94937.0,94936.0,0.215015]
[1732569278708,0.0004,94937.0,94936.0,0.215015]
[1732569281604,0.053054,94937.0,94936.0,0.215015]
[1732569283201,0.0004,94937.0,94936.0,0.215015]
[1732569284307,0.05161138,94937.0,94936.0,0.215015]
[1732569288511,0.18902507,94945.0,94944.0,0.05265]
[1732569288700,0.36136001,94952.0,94951.0,0.052646]
[1732569288701,0.3608,94952.0,94951.0,0.052646]
[1732569288906,0.3608,94952.0,94951.0,0.214606]
[1732569289106,0.3608,94952.0,94951.0,0.21540601]
[1732569289107,0.5498577,94952.0,94951.0,0.21540601]
[1732569289407,0.3608,94952.0,94951.0,0.21540601]
[1732569290812,0.3608,94952.0,94951.0,0.22817538]
[1732569291012,0.5498577,94952.0,94951.0,0.22817538]
[1732569291516,0.00010099,94954.0,94951.0,0.85228938]
[1732569291709,0.1890577,94969.0,94958.0,0.052642]
[1732569291907,0.0553,94983.0,94978.0,0.052631]
[1732569292218,0.0553,94983.0,94982.0,0.05342901]
[1732569292724,0.0553,94983.0,94982.0,0.05354472]
[1732569298926,0.0553,94983.0,94982.0,0.00091572]
[1732569298927,0.4161,94983.0,94982.0,0.00091572]
[1732569299124,0.107928,94983.0,94982.0,0.16095572]
[1732569299817,0.107928,94983.0,94982.0,0.00091572]
[1732569300013,0.107928,94983.0,94982.0,0.16095572]
[1732569300213,0.107928,94983.0,94982.0,0.21358472]
[1732569300416,0.0553,94983.0,94982.0,0.21358472]
[1732569300828,0.107928,94983.0,94982.0,0.21358472]
[1732569301128,0.107928,94983.0,94982.0,0.21354472]
[1732569301619,0.107928,94983.0,94982.0,0.05354472]
[1732569301821,0.107928,94983.0,94982.0,0.16091572]
[1732569304120,0.107928,94983.0,94982.0,0.00091572]
[1732569305427,0.052634,94974.0,94973.0,0.052632]
[1732569305832,0.053034,94974.0,94973.0,0.212632]
[1732569306028,0.0004,94974.0,94971.0,0.19355572]
[1732569306224,0.052635,94972.0,94971.0,0.19355572]
[1732569306423,0.053035,94972.0,94971.0,0.19366322]
[1732569306728,0.053035,94972.0,94971.0,0.35366322]
[1732569307226,0.053035,94972.0,94971.0,0.0001075]
[1732569307432,0.053035,94972.0,94971.0,0.1601075]
[1732569307735,0.053035,94972.0,94971.0,0.0001075]
[1732569308234,0.053035,94972.0,94971.0,0.0527425]
[1732569309118,0.053035,94972.0,94971.0,0.2127425]
[1732569309729,0.053035,94972.0,94971.0,0.0527425]
[1732569309932,0.053035,94972.0,94971.0,0.2127425]
[1732569310334,0.0004,94972.0,94971.0,0.2127425]
[1732569312738,0.00013233,94988.0,94987.0,0.052626]
[1732569313032,0.00013233,94988.0,94987.0,1.015906]
[1732569313233,0.00013233,94988.0,94987.0,1.331746]
[1732569313534,0.00013233,94988.0,94987.0,1.332146]
[1732569313738,0.1,95000.0,94987.0,1.27952]
[1732569313929,0.1,95000.0,94999.0,0.05262]
[1732569314134,0.1,95000.0,94999.0,0.21302]
[1732569314940,0.1,95000.0,94999.0,0.52882]
[1732569315328,0.00011378,95020.0,95008.0,0.052614]
[1732569315529,0.00011378,95020.0,95000.0,0.052619]
[1732569315530,0.00011378,95020.0,95019.0,0.052609]
[1732569315733,0.00011378,95020.0,95019.0,0.213009]
[1732569316139,0.00011378,95020.0,95019.0,0.1604]
[1732569320450,0.00011378,95020.0,95019.0,0.0004]
[1732569320653,0.00011378,95020.0,95019.0,0.16036]
[1732569323349,0.00011378,95020.0,95019.0,0.16096]
[1732569324054,0.00011378,95020.0,95019.0,0.16104761]
[1732569327359,0.00011378,95020.0,95019.0,0.00048761]
[1732569327553,0.00011378,95020.0,95019.0,0.16100761]
[1732569327747,0.00011378,95020.0,95019.0,0.21361661]
[1732569333262,0.0592,95037.0,95036.0,0.052599]
[1732569333459,0.0592,95037.0,95036.0,0.213119]
[1732569333662,0.0592,95037.0,95036.0,0.213519]
[1732569337655,9.59e-05,95041.0,95040.0,0.052597]
[1732569337864,9.59e-05,95041.0,95040.0,0.413397]
[1732569338573,9.59e-05,95041.0,95040.0,0.413797]
[1732569341966,9.59e-05,95041.0,95040.0,0.60230276]
[1732569342176,9.59e-05,95041.0,95040.0,0.413797]
[1732569344184,0.4134919,95041.0,95036.0,0.01357674]
[1732569344382,0.052608,95020.0,95012.0,0.19123935]
[1732569344585,0.052608,95020.0,95019.0,0.16056761]
[1732569344986,0.15704882,95024.0,95020.0,0.052608]
[1732569345185,0.052607,95023.0,95022.0,0.052607]
[1732569345384,0.20965582,95023.0,95022.0,0.052607]
[1732569345683,0.20965582,95023.0,95022.0,0.213087]
[1732569345684,0.052607,95023.0,95022.0,0.213087]
[1732569346184,0.052608,95020.0,95019.0,8.761e-05]
[1732569346390,0.052608,95020.0,95012.0,0.3608]
[1732569346689,0.052608,95020.0,94999.0,0.16048]
[1732569346690,0.052619,95000.0,94999.0,0.16048]
[1732569346876,0.0004,95013.0,94987.0,0.16048]
[1732569346877,0.052626,94988.0,94987.0,0.16048]
[1732569347284,0.053026,94988.0,94987.0,0.16048]
[1732569347477,0.053026,94988.0,94987.0,0.21320025]
[1732569347679,0.0004,94988.0,94987.0,0.21320025]
[1732569347882,0.0004,94988.0,94987.0,0.05272025]
[1732569348580,0.0004,94988.0,94987.0,0.16712]
[1732569348777,0.0004,94988.0,94987.0,0.219746]
[1732569349180,0.0004,94988.0,94987.0,0.052626]
[1732569349391,0.0004,94988.0,94987.0,0.219786]
[1732569349576,0.0004,94988.0,94987.0,0.21991357]
[1732569350689,0.0004,94988.0,94987.0,0.16728757]
[1732569350996,0.0004,94988.0,94987.0,0.00012757]
[1732569350997,0.31624,94988.0,94987.0,0.00012757]
[1732569351692,0.47328306,94988.0,94987.0,0.00012757]